Workbook

Sheet IntroSheet
A1: Pastec.
A3: What do you want to Learn about?
A5: Geotechnical Characteristics

Sheet Paste

Sheet PasteDefn
A1: Paste Fill Definition
B5: Paste Fill is the newest form of mining backfill. It is produced by adding water and a small fraction of binder to full mill tailings and has a much finer grain size distribution than any other form of backfill. Typically it has a minimum of 15% of the material smaller than 20 mm. The Figure shows the full paste and thickened tailings spectrum. It was compiled and compiledby Jewell (2001) and is recognised by a number of industry experts and achademics.
B29: The characteristics which delineate each aspect/ portion of the graph are shown in the Table below.
B31: Material Property | C31: Slurry | D31: Thickened Tailings | E31: Paste
B32: Particle Size | C32: Coarse fraction only No particles less than 20mm. Not considered critical as the segregation during transportation and or placement is dependent only on the coarse fraction | D32: Some Fines included (typically <15%), fines not considered critical as the segregation during transportation and or placement is dependent only on the coarse fraction | E32: Additional / most fines (typically 15%(min)>20 mm
B33: Pulp Density | C33: 60%-72% | D33: 70%-78% | E33: 78%-82%
B34: Flow Regimes/ Line Velocities | C34: Critical Flow Velocity. To maintain flow must have Turbulent Flow (vel>2m/ sec). If vel<2m/s settling occurs | D34: Critical Flow Velocity. To maintain flow must have Turbulent Flow (vel>2m/ sec). If vel<2m/s partial settling occurs | E34: No critical pipeline flow velocity. i.e. no settling in pipe
C35: Newtonian Flow | D35: Newtonian Flow | E35: Laminar/ plug flow
B36: Yield Stress | C36: No minimum yield stress | D36: No minimum yield stress | E36: Minimum yield Stress
B37: Preparation | C37: cyclone | D37: Cyclone end elutriation | E37: Filter/ centrifuge
B38: Segregation in stope | C38: Yes / High | D38: Slight/ Partial | E38: None
B39: Drainage from Stope | C39: Yes | D39: Partial/ Limited | E39: None/ Insignificant
B40: Final Density | C40: Low | D40: Medium/ High | E40: High
B41: Supernatant water | C41: High | D41: Some | E41: None
B42: Post placement Shrinkage | C42: High | D42: Insignificant | E42: Insignificant
B43: Rehabilitation | C43: Delayed | D43: Immediate | E43: Immediate

Sheet PasteRheology
A1: Paste Fill Rheology
B5: Paste fill rheology closely conforms to the Bingham plastic flow model, which is strongly non-Newtonian in its behaviour. Figure 1 shows a number of fluid models and plots the change in shear stress that is experienced as a function of the shear rate. Water is a Newtonian fluid, exhibiting no shear strength at zero shear rate and the shear stress increases linearly with shear rate. Bingham plastics in general and paste fill in particular, exhibit a significant shear stress that must be overcome before movement (shearing) commences. This value of shear stress is commonly referred to as yield stress. Once shearing has commenced, the rate of rise of shear stress with shear rate is approximately linear. The gradient of this line is the viscosity of the fluid.
C27: Figure 1: Rheological Profiles
B29: The key determinant of paste fill rheological behaviour is the yield stress. For paste fill and other Bingham Plastics, the yield stress is exponentially proportional to the solids density of the fluid. Figure 2 is taken from Clayton (2000) and plots yield stress against pulp density for Cannington paste fill.
C51: Figure 2: Yield Stress vs. % Solids

Sheet PasteViscosity

Sheet PasteEarlyStrength
A1: Inputs | D1: Valid Range
A2: Cement Content | B2: 3.5 | C2: % | D2: (2%-6%)
A3: Solids Content | B3: 79 | C3: % | D3: (74%-85%)
C11: Curing Time (hrs)
A12: Measurement | B12: Units | C12: 0 | D12: 3 | E12: 6 | F12: 9 | G12: 12 | H12: 24 | I12: 72 | J12: 112
A13: Yield Stress, t | B13: Pa | C13: =0.00000000001*2.71828182846^(39.694*($B$3/100)) -> 415.6418604
A14: Pocket Penetrometer
A15: with foot | B15: t/m2 | C15: 0 | D15: =IF(D16/12.324<5,D16/12.324,"out of range") -> 0.9494644596 | E15: 1.898928919 | F15: 2.848393379 | G15: 3.797857838 | H15: out of range | I15: out of range | J15: out of range
A16: Unconfined Compressive Strength | B16: kPa | C16: 0 | D16: =(1.1144*$B$2)*D12 -> 11.7012 | E16: =(1.1144*$B$2)*E12 -> 23.4024 | F16: 35.1036 | G16: 46.8048 | H16: 93.6096 | I16: 280.8288 | J16: 436.8448
A47: Notes:-
A48: 1). Yield Stress is not carried through time because initially , in the fill mix, the yield stress is realted to the solids content only -and not cement. Therefor, correlations with cemented samples later were un-realistic.
A49: 2). The increase in strength with the solids content at times greater than 3 hrs has not been taken into account (as yet). Results are based on a 79% solids mix.

Sheet PasteDilutionLevels

Sheet PasteGSD
A1: Inputs | D1: Valid Range
A2: Cement Content | B2: 4.556101891 | C2: % | D2: (2%-6%)
A3: Solids Content | B3: 79 | C3: % | D3: (74%-82%)
A4: Curing Time | B4: 28 | C4: Days | D4: (7-28 Days)
A5: P80 | B5: 75 | C5: mm | D5: 38-250 mm
A7: Predicted
A8: Unconfined Compressive Strength, UCS | E8: =[5]!Predict("C:\RMR Projects\neuroshell\CanningtonUCS.def",$B$2:$B$5, 1) ->  | F8: kPa
A9: Young's Modulus, Et | E9: =[5]!Predict("C:\RMR Projects\neuroshell\CanningtonUCS.def",$B$2:$B$5, 2) ->  | F9: =F8 -> kPa
A10: Failure Strain, ef | E10: =[5]!Predict("C:\RMR Projects\neuroshell\CanningtonUCS.def",$B$2:$B$5, 3) -> 
A12: NOTE: To identify the Cement content required to achieve the Design Strengths below, given the aforementioned inputs, PLEASE HIT "CALC. CEMENT" Button
A15: Design Strength | B15: % Cement | C15: Comment
A16: 500 | B16: 2.880280085 | C16: =IF(B16<2=TRUE,"Invalid Solution, % Cement less than lower bound ",IF(B16>6=TRUE,"Invalid Solution, % Cement higher than higher bound","")) -> 
A17: 600 | B17: 3.119295134
A18: 700 | B18: 4.377574629
A19: 800 | B19: 4.47212383
A20: 900 | B20: 4.520920698
A21: 1000 | B21: 4.556101891
A22: Notes:
A23: 1 | B23: If the cement content falls outside the valid range of cement contents (between 2% and 6%) the % cement predictions become invalid.
A24: 2 | B24: As the design strengths increase the reliability of the predictions decreases, specifically, predictions over 800 kPa should be used with additional conservatism.+0.2% cement

Sheet HDSolids
A1: Inputs | D1: Valid Range
A2: Cement Content | B2: 1 | C2: % | D2: (2%-6%)
A3: Solids Content | B3: 85 | C3: % | D3: (80%-85%)
A4: Curing Time | B4: 16 | C4: Days | D4: (7-28 Days)
A7: Predicted
A8: Unconfined Compressive Strength, UCS | E8: =[5]!Predict("C:\RMR Projects\neuroshell\HDSolids.def",$B$2:$B$4, 1) ->  | F8: kPa
A9: Young's Modulus, Et | E9: =[5]!Predict("C:\RMR Projects\neuroshell\HDSolids.def",$B$2:$B$4, 2) ->  | F9: =F8 -> kPa
A10: Failure Strain, ef | E10: =[5]!Predict("C:\RMR Projects\neuroshell\HDSolids.def",$B$2:$B$4, 3) -> 

Sheet PasteTensile
A1: Inputs | D1: Valid Range
A2: Cement Content | B2: 6 | C2: % | D2: (2%-6%)
A3: Solids Content | B3: 79 | C3: % | D3: (74%-78%)
A4: Curing Time | B4: 7 | C4: Days | D4: (7-56 Days)
A6: Predicted
A7: Tensile Strength, st | E7: =[5]!Predict("C:\RMR Projects\Neuroshell\LongTerm.def",$B$2:$B$4, 1) ->  | F7: kPa
A29: =E7 -> 
A33: Effective Strength parameters are independent of time - Time has been included to compute the UCS of the fill mix.
A34: Effective cohesion may be ignored in terms of the effective strength - as the cohesion provided by the UCS will dominate

Sheet PastePhaserelations
A1: Phase Relations: Paste (Medium Term 7-28 Days)
A3: Inputs | E3: Valid Range
A4: Cement Content | C4: 2 | D4: % | E4: (2%-6%)
A5: Solids Content | C5: 76 | D5: % | E5: (74%-78%)
A6: Curing Time | C6: 28 | D6: Days | E6: (7-28 Days)
A9: Predicted
A10: Moisture Content | H10: =[5]!Predict("C:\RMR Projects\Neuroshell\PhaseRelationsMediumterm.def",$C$4:$C$6, 1) -> 
A11: Void ratio | H11: =[5]!Predict("C:\RMR Projects\Neuroshell\PhaseRelationsMediumterm.def",$C$4:$C$6, 2) -> 
A12: Degree of Saturation | H12: =[5]!Predict("C:\RMR Projects\Neuroshell\PhaseRelationsMediumterm.def",$C$4:$C$6, 3) -> 
A13: Porosity (n) | H13: =[5]!Predict("C:\RMR Projects\Neuroshell\PhaseRelationsMediumterm.def",$C$4:$C$6, 4) -> 
A15: Bulk Density (rm) | H15: =[5]!Predict("C:\RMR Projects\Neuroshell\PhaseRelationsMediumterm.def",$C$4:$C$6, 5) ->  | I15: t/m3
A16: Dry Density (rd) | H16: =[5]!Predict("C:\RMR Projects\Neuroshell\PhaseRelationsMediumterm.def",$C$4:$C$6, 6) ->  | I16: t/m3
A17: Saturated Bulk Density (rsat) | H17: =[5]!Predict("C:\RMR Projects\Neuroshell\PhaseRelationsMediumterm.def",$C$4:$C$6, 7) ->  | I17: t/m3
A19: Bulk Modulus (gm) | H19: =[5]!Predict("C:\RMR Projects\Neuroshell\PhaseRelationsMediumterm.def",$C$4:$C$6, 8) ->  | I19: kN/m3
A20: Dry Bulk Modulus (gd) | H20: =[5]!Predict("C:\RMR Projects\Neuroshell\PhaseRelationsMediumterm.def",$C$4:$C$6, 9) ->  | I20: kN/m3
A21: Saturated Bulk Modulus (gsat) | H21: =[5]!Predict("C:\RMR Projects\Neuroshell\PhaseRelationsMediumterm.def",$C$4:$C$6, 10) ->  | I21: kN/m3
A22: Phase Relations: Paste (Long Term 1-12 Months)
A24: Inputs | E24: Valid Range
A25: Cement Content | C25: 2 | D25: % | E25: (2%-6%)
A26: Solids Content | C26: 76 | D26: % | E26: (74%-78%)
A27: Curing Time | C27: 12 | D27: Months | E27: (1-12 Months)
A30: Predicted *
A31: Moisture Content | H31: =[5]!Predict("C:\RMR Projects\Neuroshell\PhaseRelationsLongterm.def",$C$25:$C$27, 1) -> 
A32: Void ratio | H32: =[5]!Predict("C:\RMR Projects\Neuroshell\PhaseRelationsLongterm.def",$C$25:$C$27, 2) -> 
A33: Degree of Saturation | H33: =[5]!Predict("C:\RMR Projects\Neuroshell\PhaseRelationsLongterm.def",$C$25:$C$27, 3) -> 
A34: Porosity (n) | H34: =[5]!Predict("C:\RMR Projects\Neuroshell\PhaseRelationsLongterm.def",$C$25:$C$27, 4) -> 
A36: Bulk Density (rm) | H36: =[5]!Predict("C:\RMR Projects\Neuroshell\PhaseRelationsLongterm.def",$C$25:$C$27, 5) ->  | I36: t/m3
A37: Dry Density (rd) | H37: =[5]!Predict("C:\RMR Projects\Neuroshell\PhaseRelationsLongterm.def",$C$25:$C$27, 6) ->  | I37: t/m3
A38: Saturated Bulk Density (rsat) | H38: =[5]!Predict("C:\RMR Projects\Neuroshell\PhaseRelationsLongterm.def",$C$25:$C$27, 7) ->  | I38: t/m3
A40: Bulk Modulus (gm) | H40: =[5]!Predict("C:\RMR Projects\Neuroshell\PhaseRelationsLongterm.def",$C$25:$C$27, 8) ->  | I40: kN/m3
A41: Dry Bulk Modulus (gd) | H41: =[5]!Predict("C:\RMR Projects\Neuroshell\PhaseRelationsLongterm.def",$C$25:$C$27, 9) ->  | I41: kN/m3
A42: Saturated Bulk Modulus (gsat) | H42: =[5]!Predict("C:\RMR Projects\Neuroshell\PhaseRelationsLongterm.def",$C$25:$C$27, 10) ->  | I42: kN/m3
A43: * It should be noted that the Long term strength samples showed signs of drying out and sulphate attack after approximately 6 months, which is not necessarily ovserved in the field. The phase relations for the Medium and long Term samples were predicted seperately as there are different mechanisms driving the properties. i.e. cement hydration typically governs the response of short and medium term samples, whereas the "drying" out of paste due to infiltration of the air into paste can govern some of the longer term samples.

Sheet EffectiveStress
A1: Inputs | D1: Valid Range
A2: Cement Content | B2: 6 | C2: % | D2: (2%-6%)
A3: Solids Content | B3: 79 | C3: % | D3: (74%-78%)
A4: Curing Time | B4: 7 | C4: MONTHS | D4: (1-12 MONTHS)
A6: Predicted
A7: Unconfined Compressive Strength, UCS | E7: =[5]!Predict("C:\RMR Projects\Neuroshell\LongTerm.def",$B$2:$B$4, 3) ->  | F7: kPa
A8: Effective Friction Angle, f' | E8: =[5]!Predict("C:\RMR Projects\Neuroshell\Effective.def",$B$2:$B$3, 1) ->  | F8: Degrees
E21: =E8 -> 
A23: =E7 -> 
A33: Notes:
A34: Effective Strength parameters are independent of time - Time has been included to compute the UCS of the fill mix.
A35: Effective cohesion may be ignored in terms of the effective strength - as the cohesion provided by the UCS will dominate

Sheet UndrainedTxlCompression
A1: Inputs | D1: Valid Range
A2: Cement Content | B2: 3.5 | C2: % | D2: (2%-6%)
A3: Solids Content | B3: 79 | C3: % | D3: (74%-78%)
A4: Curing Time | B4: 21 | C4: Days | D4: (7-28 Days)
A6: Predicted
A7: Unconfined Compressive Strength, UCS | E7: =[5]!Predict("C:\RMR Projects\Neuroshell\MixproportionsUCS.def",$B$2:$B$4, 1) ->  | F7: kPa
A8: Friction Angle, f | E8: =[5]!Predict("C:\RMR Projects\neuroshell\UUTXLmid.def",$B$2:$B$4, 1) ->  | F8: Degrees
A9: Cohesion, cu | E9: =[5]!Predict("C:\RMR Projects\neuroshell\UUTXLmid.def",$B$2:$B$4, 2) ->  | F9: kPa
E20: =E8 -> 
A27: =E9 -> 
A30: UCS= | B30: =E7 -> 

Sheet PasteLongterm
A1: Inputs | D1: Valid Range
A2: Cement Content | B2: 3.5 | C2: % | D2: (2%-6%)
A3: Solids Content | B3: 79 | C3: % | D3: (74%-78%)
A4: Curing Time | B4: 3.5 | C4: MONTHS | D4: (1-12 MONTHS)
A6: Predicted
A7: Unconfined Compressive Strength, UCS | E7: =[5]!Predict("C:\RMR Projects\Neuroshell\LongTerm.def",$B$2:$B$4, 3) ->  | F7: kPa
A8: Friction Angle, f | E8: =[5]!Predict("C:\RMR Projects\neuroshell\Longterm.def",$B$2:$B$4, 1) ->  | F8: Degrees
A9: Cohesion, cu | E9: =[5]!Predict("C:\RMR Projects\neuroshell\LongTerm.def",$B$2:$B$4, 2) ->  | F9: kPa
E20: =E8 -> 
A23: =E7 -> 
A27: =E9 -> 

Sheet PasteMixproprtions
A1: Inputs | D1: Valid Range
A2: Cement Content | B2: 4.631789806 | C2: % | D2: (2%-6%)
A3: Solids Content | B3: 79 | C3: % | D3: (74%-80%)
A4: Curing Time | B4: 28 | C4: Days | D4: (7-28 Days)
A7: Predicted
A8: Unconfined Compressive Strength, UCS | E8: =[5]!Predict("C:\RMR Projects\neuroshell\MixproportionsUCS.def",$B$2:$B$4, 1) ->  | F8: kPa
A9: Young's Modulus, Et | E9: =[5]!Predict("C:\RMR Projects\neuroshell\MixproportionsUCS.def",$B$2:$B$4, 2) ->  | F9: =F8 -> kPa
A10: Failure Strain, ef | E10: =[5]!Predict("C:\RMR Projects\neuroshell\MixproportionsUCS.def",$B$2:$B$4, 3) -> 
A12: NOTE: To identify the Cement content required to achieve the Design Strengths below, given the aforementioned inputs, PLEASE HIT "CALC. CEMENT" Button
A15: Design Strength | B15: % Cement | C15: Comment
A16: 500 | B16: 2.952552478 | C16: =IF(B16<2=TRUE,"Invalid Solution, % Cement less than lower bound ",IF(B16>6=TRUE,"Invalid Solution, % Cement higher than higher bound","")) -> 
A17: 600 | B17: 3.180645252
A18: 700 | B18: 4.458249316
A19: 800 | B19: 4.545145792
A20: 900 | B20: 4.594162696
A21: 1000 | B21: 4.631789806
A22: Notes:
A23: 1 | B23: If the cement content falls outside the valid range of cement contents (between 2% and 6%) the % cement predictions become invalid.
A24: 2 | B24: As the design strengths increase the reliability of the predictions decreases, specifically, predictions over 800 kPa should be used with additional conservatism.+0.2% cement

Sheet AdditiveStrength

Sheet Sikament 500
A1: Sikament 500
A3: % Cement | B3: % Solids | C3: % Additive | D3: Cement (g) | E3: Tailings (g) | F3: Water (g) | G3: Additive (ml) | H3: 7-Day Curing | I3: 28-Day Curing | J3: 28-Day Curing
A4: 2 | B4: 80 | C4: 0.175070028 | D4: 8 | E4: 400 | F4: 100 | G4: =C4*(D4+E4)/100 -> 0.7142857143
A5: 2 | B5: 80 | C5: 0.350140056 | D5: 8 | E5: 400 | F5: 100 | G5: 1.428571429
A6: 2 | B6: 80 | C6: 0.525210084 | D6: 8 | E6: 400 | F6: 100 | G6: 2.142857143
A7: 2 | B7: 80 | C7: 0.612745098 | D7: 8 | E7: 400 | F7: 100 | G7: 2.5
A8: 2 | B8: 80 | C8: 0.7878151261 | D8: 8 | E8: 400 | F8: 100 | G8: 3.214285714
A9: 2 | B9: 80 | C9: 0.8753501401 | D9: 8 | E9: 400 | F9: 100 | G9: 3.571428571
A10: 2 | B10: 82.5 | C10: 0.1697648756 | D10: 8.25 | E10: 412.5 | F10: 87.5 | G10: 0.7142857143
A11: 2 | B11: 82.5 | C11: 0.3395297513 | D11: 8.25 | E11: 412.5 | F11: 87.5 | G11: 1.428571429
A12: 2 | B12: 82.5 | C12: 0.5092946269 | D12: 8.25 | E12: 412.5 | F12: 87.5 | G12: 2.142857143
A13: 2 | B13: 82.5 | C13: 0.5941770648 | D13: 8.25 | E13: 412.5 | F13: 87.5 | G13: 2.5
A14: 2 | B14: 82.5 | C14: 0.7639419404 | D14: 8.25 | E14: 412.5 | F14: 87.5 | G14: 3.214285714
A15: 2 | B15: 82.5 | C15: 0.8488243782 | D15: 8.25 | E15: 412.5 | F15: 87.5 | G15: 3.571428571
A16: 2 | B16: 85 | C16: 0.1647717911 | D16: 8.5 | E16: 425 | F16: 75 | G16: 0.7142857143
A17: 2 | B17: 85 | C17: 0.3295435821 | D17: 8.5 | E17: 425 | F17: 75 | G17: 1.428571429
A18: 2 | B18: 85 | C18: 0.4943153732 | D18: 8.5 | E18: 425 | F18: 75 | G18: 2.142857143
A19: 2 | B19: 85 | C19: 0.5767012687 | D19: 8.5 | E19: 425 | F19: 75 | G19: 2.5
A20: 2 | B20: 85 | C20: 0.7414730598 | D20: 8.5 | E20: 425 | F20: 75 | G20: 3.214285714
A21: 2 | B21: 85 | C21: 0.8238589553 | D21: 8.5 | E21: 425 | F21: 75 | G21: 3.571428571
A23: % Cement | B23: % Solids | C23: % Additive | D23: Cement (g) | E23: Tailings (g) | F23: Water (g) | G23: Additive (ml) | H23: 7-Day Curing | I23: 28-Day Curing | J23: 28-Day Curing
A24: 3.5 | B24: 80 | C24: 0.1785714286 | D24: 14 | E24: 386 | F24: 100 | G24: =C24*(D24+E24)/100 -> 0.7142857143
A25: 3.5 | B25: 80 | C25: 0.3571428571 | D25: 14 | E25: 386 | F25: 100 | G25: 1.428571429
A26: 3.5 | B26: 80 | C26: 0.4464285714 | D26: 14 | E26: 386 | F26: 100 | G26: 1.785714286
A27: 3.5 | B27: 80 | C27: 0.625 | D27: 14 | E27: 386 | F27: 100 | G27: 2.5
A28: 3.5 | B28: 80 | C28: 0.8928571429 | D28: 14 | E28: 386 | F28: 100 | G28: 3.571428571
A29: 3.5 | B29: 80 | C29: 0.8928571429 | D29: 14 | E29: 386 | F29: 100 | G29: 3.571428571
A30: 3.5 | B30: 82.5 | C30: 0.1731601732 | D30: 14.4 | E30: 398 | F30: 87.5 | G30: 0.7141125541
A31: 3.5 | B31: 82.5 | C31: 0.3463203463 | D31: 14.4 | E31: 398 | F31: 87.5 | G31: 1.428225108
A32: 3.5 | B32: 82.5 | C32: 0.4329004329 | D32: 14.4 | E32: 398 | F32: 87.5 | G32: 1.785281385
A33: 3.5 | B33: 82.5 | C33: 0.6060606061 | D33: 14.4 | E33: 398 | F33: 87.5 | G33: 2.499393939
A34: 3.5 | B34: 82.5 | C34: 0.8658008658 | D34: 14.4 | E34: 398 | F34: 87.5 | G34: 3.570562771
A35: 3.5 | B35: 82.5 | C35: 0.8658008658 | D35: 14.4 | E35: 398 | F35: 87.5 | G35: 3.570562771
A36: 3.5 | B36: 85 | C36: 0.3361344538 | D36: 14.9 | E36: 410 | F36: 75 | G36: 1.428235294
A37: 3.5 | B37: 85 | C37: 0.4201680672 | D37: 14.9 | E37: 410 | F37: 75 | G37: 1.785294118
A38: 3.5 | B38: 85 | C38: 0.5882352941 | D38: 14.9 | E38: 410 | F38: 75 | G38: 2.499411765
A39: 3.5 | B39: 85 | C39: 0.8403361345 | D39: 14.9 | E39: 410 | F39: 75 | G39: 3.570588235
A40: 3.5 | B40: 85 | C40: 0.8403361345 | D40: 14.9 | E40: 410 | F40: 75 | G40: 3.570588235
A41: 3.5 | B41: 85 | C41: 1.260504202 | D41: 14.9 | E41: 410 | F41: 75 | G41: 5.355882353
A43: % Cement | B43: % Solids | C43: % Additive | D43: Cement (g) | E43: Tailings (g) | F43: Water (g) | G43: Additive (ml) | H43: 7-Day Curing | I43: 28-Day Curing | J43: 28-Day Curing
A44: 8 | B44: 80 | C44: 0.1785714286 | D44: 32 | E44: 368 | F44: 100 | G44: =C44*(D44+E44)/100 -> 0.7142857143
A45: 8 | B45: 80 | C45: 0.3571428571 | D45: 32 | E45: 368 | F45: 100 | G45: 1.428571429
A46: 8 | B46: 80 | C46: 0.5357142857 | D46: 32 | E46: 368 | F46: 100 | G46: 2.142857143
A47: 8 | B47: 80 | C47: 0.625 | D47: 32 | E47: 368 | F47: 100 | G47: 2.5
A48: 8 | B48: 80 | C48: 0.8035714286 | D48: 32 | E48: 368 | F48: 100 | G48: 3.214285714
A49: 8 | B49: 80 | C49: 0.8928571429 | D49: 32 | E49: 368 | F49: 100 | G49: 3.571428571
A50: 8 | B50: 82.5 | C50: 0.1731601732 | D50: 33 | E50: 379.5 | F50: 87.5 | G50: 0.7142857143
A51: 8 | B51: 82.5 | C51: 0.3463203463 | D51: 33 | E51: 379.5 | F51: 87.5 | G51: 1.428571429
A52: 8 | B52: 82.5 | C52: 0.5194805195 | D52: 33 | E52: 379.5 | F52: 87.5 | G52: 2.142857143
A53: 8 | B53: 82.5 | C53: 0.6060606061 | D53: 33 | E53: 379.5 | F53: 87.5 | G53: 2.5
A54: 8 | B54: 82.5 | C54: 0.7792207792 | D54: 33 | E54: 379.5 | F54: 87.5 | G54: 3.214285714
A55: 8 | B55: 82.5 | C55: 0.8658008658 | D55: 33 | E55: 379.5 | F55: 87.5 | G55: 3.571428571
A56: 8 | B56: 85 | C56: 0.1680672269 | D56: 34 | E56: 391 | F56: 75 | G56: 0.7142857143
A57: 8 | B57: 85 | C57: 0.3361344538 | D57: 34 | E57: 391 | F57: 75 | G57: 1.428571429
A58: 8 | B58: 85 | C58: 0.5042016807 | D58: 34 | E58: 391 | F58: 75 | G58: 2.142857143
A59: 8 | B59: 85 | C59: 0.5882352941 | D59: 34 | E59: 391 | F59: 75 | G59: 2.5
A60: 8 | B60: 85 | C60: 0.756302521 | D60: 34 | E60: 391 | F60: 75 | G60: 3.214285714
A61: 8 | B61: 85 | C61: 0.8403361345 | D61: 34 | E61: 391 | F61: 75 | G61: 3.571428571

Sheet VM-105
A1: VM-105
A3: % Cement | B3: % Solids | C3: % Additive | D3: Cement (g) | E3: Tailings (g) | F3: Water (g) | G3: Additive (ml) | H3: 7-Day Curing | I3: 28-Day Curing | J3: 28-Day Curing
A4: 2 | B4: 80 | C4: 0.175070028 | D4: 8 | E4: 400 | F4: 100 | G4: =C4*(D4+E4)/100 -> 0.7142857143
A5: 2 | B5: 80 | C5: 0.350140056 | D5: 8 | E5: 400 | F5: 100 | G5: 1.428571429
A6: 2 | B6: 80 | C6: 0.43767507 | D6: 8 | E6: 400 | F6: 100 | G6: 1.785714286
A7: 2 | B7: 80 | C7: 0.525210084 | D7: 8 | E7: 400 | F7: 100 | G7: 2.142857143
A8: 2 | B8: 80 | C8: 0.700280112 | D8: 8 | E8: 400 | F8: 100 | G8: 2.857142857
A9: 2 | B9: 80 | C9: 0.8753501401 | D9: 8 | E9: 400 | F9: 100 | G9: 3.571428571
A10: 2 | B10: 82.5 | C10: 0.1697648756 | D10: 8.25 | E10: 412.5 | F10: 87.5 | G10: 0.7142857143
A11: 2 | B11: 82.5 | C11: 0.3395297513 | D11: 8.25 | E11: 412.5 | F11: 87.5 | G11: 1.428571429
A12: 2 | B12: 82.5 | C12: 0.4244121891 | D12: 8.25 | E12: 412.5 | F12: 87.5 | G12: 1.785714286
A13: 2 | B13: 82.5 | C13: 0.5092946269 | D13: 8.25 | E13: 412.5 | F13: 87.5 | G13: 2.142857143
A14: 2 | B14: 82.5 | C14: 0.6790595026 | D14: 8.25 | E14: 412.5 | F14: 87.5 | G14: 2.857142857
A15: 2 | B15: 82.5 | C15: 0.8488243782 | D15: 8.25 | E15: 412.5 | F15: 87.5 | G15: 3.571428571
A16: 2 | B16: 85 | C16: 0.1647717911 | D16: 8.5 | E16: 425 | F16: 75 | G16: 0.7142857143
A17: 2 | B17: 85 | C17: 0.3295435821 | D17: 8.5 | E17: 425 | F17: 75 | G17: 1.428571429
A18: 2 | B18: 85 | C18: 0.4119294777 | D18: 8.5 | E18: 425 | F18: 75 | G18: 1.785714286
A19: 2 | B19: 85 | C19: 0.4943153732 | D19: 8.5 | E19: 425 | F19: 75 | G19: 2.142857143
A20: 2 | B20: 85 | C20: 0.6590871643 | D20: 8.5 | E20: 425 | F20: 75 | G20: 2.857142857
A21: 2 | B21: 85 | C21: 0.8238589553 | D21: 8.5 | E21: 425 | F21: 75 | G21: 3.571428571
A23: % Cement | B23: % Solids | C23: % Additive | D23: Cement (g) | E23: Tailings (g) | F23: Water (g) | G23: Additive (ml) | H23: 7-Day Curing | I23: 28-Day Curing | J23: 28-Day Curing
A24: 3.5 | B24: 80 | C24: 0.1785714286 | D24: 14 | E24: 386 | F24: 100 | G24: =C24*(D24+E24)/100 -> 0.7142857143
A25: 3.5 | B25: 80 | C25: 0.3571428571 | D25: 14 | E25: 386 | F25: 100 | G25: 1.428571429
A26: 3.5 | B26: 80 | C26: 0.4464285714 | D26: 14 | E26: 386 | F26: 100 | G26: 1.785714286
A27: 3.5 | B27: 80 | C27: 0.5357142857 | D27: 14 | E27: 386 | F27: 100 | G27: 2.142857143
A28: 3.5 | B28: 80 | C28: 0.7142857143 | D28: 14 | E28: 386 | F28: 100 | G28: 2.857142857
A29: 3.5 | B29: 80 | C29: 0.8928571429 | D29: 14 | E29: 386 | F29: 100 | G29: 3.571428571
A30: 3.5 | B30: 82.5 | C30: 0.1731601732 | D30: 14.4 | E30: 398 | F30: 87.5 | G30: 0.7141125541
A31: 3.5 | B31: 82.5 | C31: 0.3463203463 | D31: 14.4 | E31: 398 | F31: 87.5 | G31: 1.428225108
A32: 3.5 | B32: 82.5 | C32: 0.4329004329 | D32: 14.4 | E32: 398 | F32: 87.5 | G32: 1.785281385
A33: 3.5 | B33: 82.5 | C33: 0.5194805195 | D33: 14.4 | E33: 398 | F33: 87.5 | G33: 2.142337662
A34: 3.5 | B34: 82.5 | C34: 0.6926406926 | D34: 14.4 | E34: 398 | F34: 87.5 | G34: 2.856450216
A35: 3.5 | B35: 82.5 | C35: 0.8658008658 | D35: 14.4 | E35: 398 | F35: 87.5 | G35: 3.570562771
A36: 3.5 | B36: 85 | C36: 0.1680672269 | D36: 14.9 | E36: 410 | F36: 75 | G36: 0.7141176471
A37: 3.5 | B37: 85 | C37: 0.3361344538 | D37: 14.9 | E37: 410 | F37: 75 | G37: 1.428235294
A38: 3.5 | B38: 85 | C38: 0.4201680672 | D38: 14.9 | E38: 410 | F38: 75 | G38: 1.785294118
A39: 3.5 | B39: 85 | C39: 0.5042016807 | D39: 14.9 | E39: 410 | F39: 75 | G39: 2.142352941
A40: 3.5 | B40: 85 | C40: 0.6722689076 | D40: 14.9 | E40: 410 | F40: 75 | G40: 2.856470588
A41: 3.5 | B41: 85 | C41: 0.8403361345 | D41: 14.9 | E41: 410 | F41: 75 | G41: 3.570588235
A43: % Cement | B43: % Solids | C43: % Additive | D43: Cement (g) | E43: Tailings (g) | F43: Water (g) | G43: Additive (ml) | H43: 7-Day Curing | I43: 28-Day Curing | J43: 28-Day Curing
A44: 8 | B44: 80 | C44: 0.1785714286 | D44: 32 | E44: 368 | F44: 100 | G44: =C44*(D44+E44)/100 -> 0.7142857143
A45: 8 | B45: 80 | C45: 0.3571428571 | D45: 32 | E45: 368 | F45: 100 | G45: 1.428571429
A46: 8 | B46: 80 | C46: 0.4464285714 | D46: 32 | E46: 368 | F46: 100 | G46: 1.785714286
A47: 8 | B47: 80 | C47: 0.5357142857 | D47: 32 | E47: 368 | F47: 100 | G47: 2.142857143
A48: 8 | B48: 80 | C48: 0.7142857143 | D48: 32 | E48: 368 | F48: 100 | G48: 2.857142857
A49: 8 | B49: 80 | C49: 0.8928571429 | D49: 32 | E49: 368 | F49: 100 | G49: 3.571428571
A50: 8 | B50: 82.5 | C50: 0.1731601732 | D50: 33 | E50: 379.5 | F50: 87.5 | G50: 0.7142857143
A51: 8 | B51: 82.5 | C51: 0.3463203463 | D51: 33 | E51: 379.5 | F51: 87.5 | G51: 1.428571429
A52: 8 | B52: 82.5 | C52: 0.4329004329 | D52: 33 | E52: 379.5 | F52: 87.5 | G52: 1.785714286
A53: 8 | B53: 82.5 | C53: 0.5194805195 | D53: 33 | E53: 379.5 | F53: 87.5 | G53: 2.142857143
A54: 8 | B54: 82.5 | C54: 0.6926406926 | D54: 33 | E54: 379.5 | F54: 87.5 | G54: 2.857142857
A55: 8 | B55: 82.5 | C55: 0.8658008658 | D55: 33 | E55: 379.5 | F55: 87.5 | G55: 3.571428571
A56: 8 | B56: 85 | C56: 0.1680672269 | D56: 34 | E56: 391 | F56: 75 | G56: 0.7142857143
A57: 8 | B57: 85 | C57: 0.3361344538 | D57: 34 | E57: 391 | F57: 75 | G57: 1.428571429
A58: 8 | B58: 85 | C58: 0.4201680672 | D58: 34 | E58: 391 | F58: 75 | G58: 1.785714286
A59: 8 | B59: 85 | C59: 0.5042016807 | D59: 34 | E59: 391 | F59: 75 | G59: 2.142857143
A60: 8 | B60: 85 | C60: 0.6722689076 | D60: 34 | E60: 391 | F60: 75 | G60: 2.857142857
A61: 8 | B61: 85 | C61: 0.8403361345 | D61: 34 | E61: 391 | F61: 75 | G61: 3.571428571

Sheet Paste Consolidation
A1: 1. Consolidation of Curing Paste
A4: Typically consolidation of paste has been conducted after the samples have been cast and have cured for a designated period of time (I.e. 7,14 or 28 Days of Curing). A preliminary round of testing was conducted using samples which were cured with an applied vertical (consolidation) pressure. The results for presented are for a 3.5% cement, 79% solids mix. It should be noted that the results are preliminary, but do indicate a strengthening of paste, due to a densification of the solid soil matrix within the paste.
A11: 2. Consolidation of Cured Paste
A13: Inputs | E13: Valid Range
A14: Cement Content | C14: 4 | D14: % | E14: (2%-6%)
A15: Solids Content | C15: 76 | D15: % | E15: (74%-78%)
A16: Curing Time | C16: 28 | D16: Days | E16: 28 Days Only
A18: Predicted
A19: Co-efficient of Consolidation, cv | H19: =[5]!Predict("C:\RMR Projects\Neuroshell\pasteconsolidation.def",$C$14:$C$15, 1) ->  | I19: m2/ yr
A20: Co-efficient of Secondary Compression, ca | H20: =[5]!Predict("C:\RMR Projects\Neuroshell\pasteconsolidation.def",$C$14:$C$15, 2) -> 

Sheet Consol. prelim. Results
A1: Preliminary Test Results from Consolidated Curing Conditions
A24: Figure 1: UCS vs Consolidation Pressure
A25: The increase in strength is considered to be attributable to the densification of the soil matrix. Occuring through the expulsion of additional water. This will occur when the paste is just starting to set.
A49: Figure 2: Et vs Consolidation Pressure
A50: The increase in the Tangential Young's Modulus inidcates an increasingly stiff material - As would be expected with the densification of the paste
A74: Figure 3: Failure Strain vs Consolidation Pressure
A75: The decrease in the average failure strain with consolidation pressure indicated the material becoming more brittle, after being cured under higher consolidation pressures. This is also consistent with the densification of paste.

Sheet Orebody
A1: Cannington Ore body
A3: Overview
A16: Strength and Deformation Characteristics
B18: Inputs
B19: Unconfined Compressive Strength | F19: 65 | G19: MPa
B22: Select Mineralisation

Sheet SHMU
A1: Mineralisation Type | B1: SHMU
A2: Name | B2: Muscovite Sillimanite Schist
A3: Ore/ Waste | B3: Waste
A5: Properties
A6: Unconfined Compressive Strength | B6: =Orebody!F19 -> 65 | C6: MPa
A7: Failure Strain | B7: =0.00003*B6+0.0025 -> 0.00445
A8: Tangential Young's Modulus | B8: 15.875 | C8: GPa
A9: Density | B9: 2.76 | C9: t/m3
A10: Poisson's ratio | B10: 0.11
A11: Tensile Strength | B11: =0.21*B6 -> 13.65 | C11: MPa
A12: Point Load Strength | B12: =B6/B14 -> 7.222222222 | C12: MPa
A13: Hardness Classification (AS 1726-1993, Table 8) | B13: Very Hard
A14: Multiplication Factor (Is50 to UCS) | B14: 9
A16: Image: SHMU

Sheet AMPH
A1: Mineralisation Type | B1: AMPH
A2: Name | B2: Amphibolite
A3: Ore/ Waste | B3: Waste
A5: Properties
A6: Unconfined Compressive Strength | B6: =Orebody!F19 -> 65 | C6: MPa
A7: Failure Strain | B7: =0.00003*B6+0.0025 -> 0.00445
A8: Tangential Young's Modulus | B8: 36.4 | C8: GPa
A9: Density | B9: 2.985662567 | C9: t/m3
A10: Poisson's ratio | B10: 0.09
A11: Tensile Strength | B11: =0.08*B6 -> 5.2 | C11: MPa
A12: Point Load Strength | B12: 4.14 | C12: MPa
A13: Hardness Classification (AS 1726-1993, Table 8) | B13: Very Hard
A14: Multiplication Factor (Is50 to UCS) | B14: 30
A16: Image
A17: Not Available

Sheet PEGM
A1: Mineralisation Type | B1: PEGM
A2: Name | B2: Pegmatite
A3: Ore/ Waste | B3: Waste
A5: Properties
A6: Unconfined Compressive Strength | B6: =Orebody!F19 -> 65 | C6: MPa
A7: Failure Strain | B7: =0.00003*B6+0.0025 -> 0.00445
A8: Tangential Young's Modulus | B8: 27.425 | C8: GPa
A9: Density | B9: 2.61 | C9: t/m3
A10: Poisson's ratio | B10: 0.22
A11: Tensile Strength | B11: =0.11*B6 -> 7.15 | C11: MPa
A12: Point Load Strength | B12: 1.04 | C12: MPa
A13: Hardness Classification (AS 1726-1993, Table 8) | B13: Very Hard
A14: Multiplication Factor (Is50 to UCS) | B14: 25
A16: Image: Gnes-Pegmatic

Sheet GNES
A1: Mineralisation Type | B1: GNES
A2: Name | B2: Quartzo-felspathic gneiss
A3: Ore/ Waste | B3: Waste
A5: Properties
A6: Unconfined Compressive Strength | B6: =Orebody!F19 -> 65 | C6: MPa
A7: Failure Strain | B7: =0.00003*B6+0.0025 -> 0.00445
A8: Tangential Young's Modulus | B8: 13.75 | C8: GPa
A9: Density | B9: 2.65 | C9: t/m3
A10: Poisson's ratio | B10: 0.26
A11: Tensile Strength | B11: =0.22*B6 -> 14.3 | C11: MPa
A12: Point Load Strength | B12: 0.49 | C12: MPa
A13: Hardness Classification (AS 1726-1993, Table 8) | B13: Hard
A14: Multiplication Factor (Is50 to UCS) | B14: 9
A16: Image: GNES

Sheet BM
A1: Mineralisation Type | B1: BM
A2: Name | B2: Burnham
A3: Ore/ Waste | B3: Ore
A5: Properties
A6: Unconfined Compressive Strength | B6: =Orebody!F19 -> 65 | C6: MPa
A7: Failure Strain | B7: =0.00003*B6+0.0025 -> 0.00445
A8: Tangential Young's Modulus | B8: 34 | C8: GPa
A9: Density | B9: 4.38 | C9: t/m3
A10: Poisson's ratio | B10: 0.2
A11: Tensile Strength | B11: =0.07*B6 -> 4.55 | C11: MPa
A12: Point Load Strength | B12: 1.11 | C12: MPa
A13: Hardness Classification (AS 1726-1993, Table 8) | B13: Very Hard
A14: Multiplication Factor (Is50 to UCS) | B14: 35
A16: Image: Burnham

Sheet BL
A1: Mineralisation Type | B1: BL
A2: Name | B2: Broadlands
A3: Ore/ Waste | B3: Ore
A5: Properties
A6: Unconfined Compressive Strength | B6: =Orebody!F19 -> 65 | C6: MPa
A7: Failure Strain | B7: =0.00003*B6+0.0025 -> 0.00445
A8: Tangential Young's Modulus | B8: 33.77 | C8: GPa
A9: Density | B9: 3.53 | C9: t/m3
A10: Poisson's ratio | B10: 0.17
A11: Tensile Strength | B11: =0.06*B6 -> 3.9 | C11: MPa
A12: Point Load Strength | B12: 2.74 | C12: MPa
A13: Hardness Classification (AS 1726-1993, Table 8) | B13: Very Hard
A14: Multiplication Factor (Is50 to UCS) | B14: 25
A16: Image: Broadlands

Sheet GH
A1: Mineralisation Type | B1: GH
A2: Name | B2: Glenholme
A3: Ore/ Waste | B3: Ore
A5: Properties
A6: Unconfined Compressive Strength | B6: =Orebody!F19 -> 65 | C6: MPa
A7: Failure Strain | B7: =0.00003*B6+0.0025 -> 0.00445
A8: Tangential Young's Modulus | B8: 17.55 | C8: GPa
A9: Density | B9: 3.8 | C9: t/m3
A10: Poisson's ratio | B10: 0.11
A11: Tensile Strength | B11: =0.2*B6 -> 13 | C11: MPa
A12: Point Load Strength | B12: 3.24 | C12: MPa
A13: Hardness Classification (AS 1726-1993, Table 8) | B13: Very Hard
A14: Multiplication Factor (Is50 to UCS) | B14: 9
A16: Image
A17: Not Available

Sheet QZGA_IT
A1: Mineralisation Type | B1: QZGA/ IT
A2: Name | B2: QZGA – garnetiferous quartzite/ arkose QZIT - meta quartzite/ arkose
A3: Ore/ Waste | B3: Possible Ore - Depending on Pb, Zn, Ag grade & cut off grade - typically. Found in ore bearing rocks
A5: Properties
A6: Unconfined Compressive Strength | B6: =Orebody!F19 -> 65 | C6: MPa
A7: Failure Strain | B7: =0.00003*B6+0.0025 -> 0.00445
A8: Tangential Young's Modulus | B8: 24.85 | C8: GPa
A9: Density | B9: 2.94 | C9: t/m3
A10: Poisson's ratio | B10: 0.17
A11: Tensile Strength | B11: =0.07*B6 -> 4.55 | C11: MPa
A12: Point Load Strength | B12: 3.82 | C12: MPa
A13: Hardness Classification (AS 1726-1993, Table 8) | B13: Very Hard
A14: Multiplication Factor (Is50 to UCS) | B14: 35
A16: Image
A17: Not Available

Sheet QZHD
A1: Mineralisation Type | B1: QZHD
A2: Name | B2: Hedenbergite Quartzite rock
A3: Ore/ Waste | B3: Possible Ore - Depending on Pb, Zn, Ag grade & cut off grade - typically. Found in ore bearing rocks
A5: Properties
A6: Unconfined Compressive Strength | B6: =Orebody!F19 -> 65 | C6: MPa
A7: Failure Strain | B7: =0.00003*B6+0.0025 -> 0.00445
A8: Tangential Young's Modulus | B8: 36.35 | C8: GPa
A9: Density | B9: 3.3 | C9: t/m3
A10: Poisson's ratio | B10: 0.13
A11: Tensile Strength | B11: =0.07*B6 -> 4.55 | C11: MPa
A12: Point Load Strength | B12: 3.21 | C12: MPa
A13: Hardness Classification (AS 1726-1993, Table 8) | B13: Very Hard
A14: Multiplication Factor (Is50 to UCS) | B14: 25
A16: Image
A17: Not Available

Sheet HDMT
A1: Mineralisation Type | B1: HDMT
A2: Name | B2: Magnetite bearing Hedenbergite rock
A3: Ore/ Waste | B3: Possible Ore - Depending on Pb, Zn, Ag grade & cut off grade - typically. Found in ore bearing rocks
A5: Properties
A6: Unconfined Compressive Strength | B6: =Orebody!F19 -> 65 | C6: MPa
A7: Failure Strain | B7: =0.00003*B6+0.0025 -> 0.00445
A8: Tangential Young's Modulus | B8: 28.2 | C8: GPa
A9: Density | B9: 4.2 | C9: t/m3
A10: Poisson's ratio | B10: 0.13
A11: Tensile Strength | B11: =0.11*B6 -> 7.15 | C11: MPa
A12: Point Load Strength | B12: 2.44 | C12: MPa
A13: Hardness Classification (AS 1726-1993, Table 8) | B13: Very Hard
A14: Multiplication Factor (Is50 to UCS) | B14: 20
A16: Image
A17: Not Available

Sheet PXAM
A1: Mineralisation Type | B1: PXAM
A2: Name | B2: Pyrobole Rock
A3: Ore/ Waste | B3: Possible Ore - Depending on Pb, Zn, Ag grade & cut off grade - typically. Found in ore bearing rocks
A5: Properties
A6: Unconfined Compressive Strength | B6: =Orebody!F19 -> 65 | C6: MPa
A7: Failure Strain | B7: =0.00003*B6+0.0025 -> 0.00445
A8: Tangential Young's Modulus | B8: 24.15 | C8: GPa
A9: Density | B9: 3.75 | C9: t/m3
A10: Poisson's ratio | B10: 0.17
A11: Tensile Strength | B11: =0.14*B6 -> 9.1 | C11: MPa
A12: Point Load Strength | B12: 6.41 | C12: MPa
A13: Hardness Classification (AS 1726-1993, Table 8) | B13: Extremely Hard
A14: Multiplication Factor (Is50 to UCS) | B14: 9
A16: Image: Mafic PXAM Pyrobole Rock

Sheet Overview
A1: Ore body Overview
B27: Plan View Section View
B29: The Southern zone (34.7 Mt @ 12.4% Pb, 4.9% Zn and 582 g/t Ag) contains the bulk of the defined reserve and is the focus of current development. In the Southern zone mineralisation dips at about 50 degrees toward the East (refer Section view) reaching a maximum depth of about 600 m. Lying at the heart of the deposit is a body of amphibolite (up to 200m thick) known as the "core amphibolite". Mineralisation lying structurally above and below the amphibolite is referred to as hanging wall and footwall mineralisation respectively. This mineralisation has been divided into a number of specific ore types, which define a stacked sequence of chemically and mineralogically distinct sheets. In the Northern zone (9.1 Mt @ 8.9% Pb, 3.0% Zn and 371 g/t Ag) the geometry and the distinction between specific ore types is less clear. The majority of mineralisation occurs above the core amphibolite in a sub-vertical to steeply west dipping zone up to 200m wide, which is terminated by the Trepell Fault.

Sheet Mineralisation
A1: Mineralisation
B7: Lode Horizon | C7: Mineralisation | D7: Log Type | E7: Fe: Si | F7: Pb:Zn | G7: Ag: Pb% | H7: Ore Grade | I7: Gangue*
B8: Hangingwall Lead | C8: Broadlands, BL | D8: PQ, QZ | E8: Mafic-siliceous bands | F8: Pb>>Zn | G8: 21-50 | H8: Med-Low | I8: qtz-pxm-gn
C9: Burnham, BM | D9: PA, PT | E9: Mafic | F9: Pb>>Zn | G9: 41-56 | H9: High | I9: mag-fl-pxm-px-qtz
B10: Hangingwall Zinc | C10: Kheri, KH | D10: PA | E10: Mafic | F10: Zn>Pb | G10: 29-63 | H10: Low | I10: px-qtz-mag-fl
C11: Kheri/ Colwell, KC | D11: PA, PT | E11: Mafic | F11: Zn>Pb | G11: 110 | H11: Low | I11: mag-fl-px-qtz
B12: Footwall Zinc | C12: Colwell, CW | D12: PA, PT | E12: Mafic | F12: Zn>Pb | G12: 28-74 | H12: Low-Med | I12: mag-fl-px-qtz
C13: Cuckadoo, CK | D13: QZ, QT | E13: Siliceous | F13: Zn>>Pb | G13: 23-38 | H13: Med | I13: qtz-(chl-gn)
C14: Glenholme, GH | D14: QZ | E14: Siliceous | F14: Pb<>Zn | G14: 33-41 | H14: High | I14: qtz-carb
B15: Footwall Lead | C15: Nithsdale, NS | D15: PT, PA | E15: Mafic | F15: Pb>>Zn | G15: N/A | H15: Med | I15: mag-fl-pxm-px-qtz
C16: Warenda, WA | D16: PQ,QZ | E16: Mafic-siliceous bands | F16: Pb>Zn | G16: N/A | H16: Low | I16: qtz-pxm-gn
B17: Brolga Fault | C17: Glenholme GH | D17: QZ | E17: Siliceous | F17: Pb<>Zn | G17: 33-41 | H17: Very High | I17: qtz-(carb)
B18: * Where: mag-magnetite, fl-fluorite, px-pyroxenes, qtz-quartz, gn-garnet, carb-carbonates, pxm-pyroxmangite, chl-chlorite

Sheet Test Mtds.
A1: Rock Testing Standards
A4: Standard | B4: Description
A5: AS 4133.0-1993 | B5: Methods of testing rocks for engineering purposes - General requirements and list of methods
A6: AS 4133.2.1.2-1993 | B6: Methods of testing rocks for engineering purposes - Rock porosity and density tests - Determination of rock porosity and dry density - Saturation and buoyancy techniques
A7: AS 4133.4.1-1993 | B7: Methods of testing rocks for engineering purposes - Rock strength tests - Determination of point load strength index
A8: AS 4133.4.1-1993/Amdt 1-1994 | B8: Methods of testing rocks for engineering purposes - Rock strength tests - Determination of point load strength index
A9: AS 4133.4.2-1993 | B9: Methods of testing rocks for engineering purposes - Rock strength tests - Determination of uniaxial compressive strength
A10: AS 4133.4.3-1993 | B10: Methods of testing rocks for engineering purposes - Rock strength tests - Determination of deformability of rock materials in uniaxial compression
A11: AS 4133.5-2002 | B11: Methods of testing rocks for engineering purposes - Sampling of rock core
